bitfinex-derivatives/quotes_BTCF0:USTF0_20250424
["timestamp","ask_amount","ask_price","bid_price","bid_amount"]
[1745503270751,0.1074762,93014.0,93012.0,0.3608]
[1745503270952,0.1074774,93013.0,93012.0,0.3608]
[1745503271139,0.2794774,93013.0,93012.0,0.3608]
[1745503272153,0.1074913,93001.0,93000.0,0.3608]
[1745503273055,0.1075132,92982.0,92977.0,0.3608]
[1745503273242,0.1810732,92982.0,92977.0,0.3608]
[1745503273553,0.2886212,92982.0,92977.0,0.3608]
[1745503273944,0.1075306,92967.0,92966.0,0.00107566]
[1745503274149,0.3530906,92967.0,92966.0,0.10860736]
[1745503274346,0.3530906,92967.0,92966.0,0.00107566]
[1745503274956,0.3530906,92967.0,92966.0,0.10860736]
[1745503275453,0.3530906,92967.0,92966.0,0.00107566]
[1745503276153,0.3530906,92967.0,92966.0,0.10860736]
[1745503276556,0.172,92967.0,92966.0,0.10860736]
[1745503276847,0.172,92967.0,92966.0,0.31000736]
[1745503277350,0.3530906,92967.0,92966.0,0.00207566]
[1745503278045,0.7106546,92967.0,92966.0,0.00207566]
[1745503278241,0.7106546,92967.0,92966.0,0.00607566]
[1745503278746,0.7106546,92967.0,92966.0,0.00907566]
[1745503279050,0.4606546,92967.0,92966.0,0.00507566]
[1745503279253,0.4606546,92967.0,92966.0,0.00107566]
[1745503279441,0.8530906,92967.0,92966.0,0.00207566]
[1745503279647,0.8530906,92967.0,92966.0,0.47040736]
[1745503279947,0.8530906,92967.0,92966.0,0.10960736]
[1745503280551,0.8530906,92967.0,92966.0,0.67450736]
[1745503280746,0.3530906,92967.0,92966.0,0.00207566]
[1745503280942,0.7138906,92967.0,92966.0,0.00207566]
[1745503281445,0.7138906,92967.0,92966.0,0.00307566]
[1745503282756,0.7138906,92967.0,92966.0,0.00207566]
[1745503283143,0.7139306,92967.0,92966.0,0.00207566]
[1745503284354,0.8214946,92967.0,92966.0,0.00207566]
[1745503284755,0.7478946,92967.0,92966.0,0.00207566]
[1745503284954,0.172,92967.0,92966.0,0.10960736]
[1745503285159,0.3608,92992.0,92991.0,0.1075028]
[1745503285455,0.0736,92992.0,92991.0,0.215003]
[1745503286046,0.3608,93006.0,92986.0,0.309]
[1745503286254,0.1074985,92999.0,92998.0,0.1074924]
[1745503286458,0.0537433,93005.0,93002.0,0.0537445]
[1745503286652,0.1936,93015.0,93012.0,0.0537388]
[1745503286859,0.0537403,93011.0,93008.0,0.3608]
[1745503287054,0.107482,93009.0,93008.0,0.3608]
[1745503287558,0.1074947,92999.0,92997.0,0.3608]
[1745503287762,0.1075017,92992.0,92991.0,0.1095005]
[1745503288057,0.0537501,92994.0,92993.0,0.1074982]
[1745503288260,0.0537489,92996.0,92995.0,0.1074982]
[1745503288855,0.0537501,92994.0,92991.0,0.002]
[1745503289056,0.1612529,92992.0,92991.0,0.1075028]
[1745503289962,0.107504,92990.0,92989.0,0.4683047]
[1745503291060,0.279504,92990.0,92989.0,0.4683047]
[1745503291361,0.28054022,92990.0,92989.0,0.4683047]
[1745503291562,0.28054022,92990.0,92989.0,0.4693047]
[1745503292357,0.279504,92990.0,92989.0,0.4693047]
[1745503292563,0.28105853,92990.0,92989.0,0.4713047]
[1745503292964,0.17399422,92990.0,92989.0,0.4713047]
[1745503293165,0.00199422,92990.0,92989.0,0.5733047]
[1745503293369,0.00199422,92990.0,92989.0,0.5743047]
[1745503293568,0.00199422,92990.0,92989.0,0.5753047]
[1745503295457,0.0537444,93006.0,93003.0,0.1612306]
[1745503295658,0.0537381,93015.0,93005.0,0.7216]
[1745503295967,0.10908794,93016.0,93015.0,0.1074751]
[1745503296161,0.00161404,93016.0,93015.0,0.1074751]
[1745503297268,0.10908794,93016.0,93015.0,0.1074751]
[1745503297964,0.1074751,93015.0,93014.0,0.3608]
[1745503298159,0.3066751,93015.0,93014.0,0.3608]
[1745503298359,0.3066751,93015.0,93014.0,0.4682762]
[1745503298559,0.3066751,93015.0,93014.0,0.3608]
[1745503298770,0.3066751,93015.0,93014.0,0.4682762]
[1745503299063,0.10851172,93015.0,93014.0,0.4682762]
[1745503299267,0.28051172,93015.0,93014.0,0.4682762]
[1745503299571,0.28095093,93015.0,93014.0,0.4682762]
[1745503302372,0.17347583,93015.0,93014.0,0.4682762]
[1745503303173,0.00147583,93015.0,93014.0,0.4682762]
[1745503304882,1e-08,93016.0,93015.0,0.10548]
[1745503305361,1e-08,93016.0,93015.0,0.31328]
[1745503306365,0.2041,93056.0,93044.0,0.1074393]
[1745503306561,0.1074456,93045.0,93044.0,0.1611599]
[1745503306771,0.2041,93056.0,93049.0,0.1074358]
[1745503306974,0.2168563,93067.0,93044.0,0.3608]
[1745503306975,0.1631487,93067.0,93053.0,0.0537155]
[1745503307174,0.1126185,93064.0,93063.0,0.4682197]
[1745503307382,0.1126185,93064.0,93063.0,0.3608]
[1745503307670,0.1126185,93064.0,93063.0,0.4682197]
[1745503308073,0.2846185,93064.0,93063.0,0.3608]
[1745503308270,0.2846185,93064.0,93063.0,0.4682197]
[1745503308479,0.2846185,93064.0,93063.0,0.3608]
[1745503309167,0.1772,93064.0,93063.0,0.4682197]
[1745503310170,0.1073837,93095.0,93063.0,0.71825199]
[1745503310371,0.19170644,93105.0,93097.0,0.1073804]
[1745503310676,0.19170644,93105.0,93097.0,0.4681804]
[1745503310973,0.107373,93104.0,93097.0,0.4681804]
[1745503311164,0.19170644,93105.0,93097.0,0.4681804]
[1745503311366,0.0536767,93121.0,93111.0,0.1073643]
[1745503311570,0.20429307,93114.0,93111.0,0.3608]
[1745503311776,0.1073631,93112.0,93111.0,0.3608]
[1745503312175,0.172,93112.0,93100.0,0.30135134]
[1745503312373,0.107377,93100.0,93099.0,0.00804319]
[1745503313175,0.1073793,93098.0,93097.0,0.3608]
[1745503313375,0.1073793,93098.0,93097.0,0.4681804]
[1745503313776,0.0982,93099.0,93098.0,0.1073793]
[1745503313973,0.172,93100.0,93099.0,0.1073781]
[1745503314174,0.172,93100.0,93099.0,0.4681781]
[1745503314375,0.13575816,93130.0,93116.0,0.1073585]
[1745503314573,0.0536753,93123.0,93116.0,0.8289585]
[1745503314880,0.1084574,93117.0,93116.0,0.7216]
[1745503315067,0.2804574,93117.0,93116.0,0.8289585]
[1745503315385,0.1731,93117.0,93116.0,0.8289585]
[1745503316072,0.3608,93136.0,93116.0,0.8289585]
[1745503316073,0.1033,93135.0,93129.0,0.1073435]
[1745503316266,0.172,93132.0,93129.0,0.4681435]
[1745503317282,0.41510056,93130.0,93129.0,0.4681435]
[1745503317471,0.41510056,93130.0,93129.0,0.3608]
[1745503317673,0.0536753,93123.0,93119.0,0.0536772]
[1745503317874,0.36142956,93130.0,93121.0,0.4144758]
[1745503318075,0.30775816,93130.0,93129.0,0.4681435]
[1745503318383,0.13575816,93130.0,93129.0,0.4681435]
[1745503318678,0.09394597,93155.0,93142.0,0.1073268]
[1745503318882,0.09394597,93155.0,93137.0,0.0536669]
[1745503318883,0.107332,93139.0,93138.0,0.3608]
[1745503319176,0.279332,93139.0,93138.0,0.4681332]
[1745503319570,0.279332,93139.0,93138.0,0.3608]
[1745503319977,0.172,93139.0,93138.0,0.4681332]
[1745503320369,0.0977,93156.0,93154.0,0.1073136]
[1745503320575,0.0977,93156.0,93147.0,0.0536613]
[1745503320576,0.0052,93160.0,93159.0,0.107309]
[1745503320773,0.0052,93160.0,93159.0,0.468109]
[1745503321178,0.0011,93177.0,93164.0,0.0536512]
[1745503321380,0.1812,93191.0,93176.0,0.3608]
[1745503321680,0.1072855,93180.0,93176.0,0.3608]
[1745503321886,0.0536436,93178.0,93165.0,0.3608]
[1745503322083,0.1073136,93155.0,93154.0,0.3608]
[1745503322278,0.1073136,93155.0,93154.0,0.4681147]
[1745503322577,0.1073075,93165.0,93164.0,0.0536499]
[1745503323281,0.1073075,93165.0,93154.0,0.4144569]
[1745503323282,0.053655,93159.0,93154.0,0.4144569]
[1745503323481,0.1073136,93155.0,93154.0,0.4144569]
[1745503323683,0.1073136,93155.0,93154.0,0.3608]
[1745503323985,0.1073136,93155.0,93154.0,0.4681147]
[1745503324284,0.2793136,93155.0,93154.0,0.4681147]
[1745503324586,0.2793136,93155.0,93154.0,0.3608]
[1745503324971,0.107317,93152.0,93146.0,0.10839648]
[1745503325178,0.279317,93152.0,93151.0,0.1078782]
[1745503325388,0.1073228,93147.0,93146.0,0.10839648]
[1745503325688,0.1073228,93147.0,93146.0,0.00107358]
[1745503326078,0.2793228,93147.0,93146.0,0.00107358]
[1745503326779,0.2793228,93147.0,93135.0,0.0981]
[1745503326780,0.1073389,93133.0,93132.0,0.4681382]
[1745503326971,0.1073504,93124.0,93123.0,0.1073481]
[1745503327176,0.1073504,93123.0,93122.0,0.3608]
[1745503327378,0.3069504,93123.0,93122.0,0.3608]
[1745503327579,0.4143344,93123.0,93122.0,0.3608]
[1745503327779,0.4143344,93123.0,93122.0,0.4681516]
[1745503328178,0.478984,93123.0,93122.0,0.4681516]
[1745503328382,0.172,93123.0,93122.0,0.4681516]
[1745503328583,0.0744,93139.0,93138.0,0.1073332]
[1745503328783,0.0744,93139.0,93138.0,0.4681332]
[1745503329185,0.2464,93139.0,93138.0,0.4681332]
[1745503329789,0.353732,93139.0,93138.0,0.4681332]
[1745503329988,0.2464,93139.0,93138.0,0.4681332]
[1745503330188,0.353732,93139.0,93138.0,0.4681332]
[1745503330389,0.2464,93139.0,93138.0,0.4681332]
[1745503330891,0.1073119,93157.0,93138.0,0.7216]
[1745503331191,0.0536557,93157.0,93150.0,0.3608]
[1745503331390,0.1073182,93151.0,93136.0,0.1018]
[1745503331595,0.1073378,93134.0,93133.0,0.4144692]
[1745503331893,0.1073378,93134.0,93133.0,0.3608]
[1745503332084,0.1073481,93125.0,93124.0,0.3608]
[1745503332286,0.1073481,93125.0,93124.0,0.4681493]
[1745503333097,0.2793481,93125.0,93124.0,0.4681493]
[1745503333287,0.172,93125.0,93124.0,0.4681493]
[1745503333981,0.1073443,93129.0,93128.0,0.1073435]
[1745503334180,0.1073443,93129.0,93128.0,0.2066]
[1745503334379,0.2076443,93129.0,93128.0,0.1048]
[1745503334590,0.1073481,93125.0,93124.0,0.3608]
[1745503334983,0.1999,93129.0,93128.0,0.1073447]
[1745503335189,0.1003,93129.0,93128.0,0.1073447]
[1745503335380,0.2076435,93129.0,93128.0,0.1073447]
[1745503336095,0.3796435,93129.0,93128.0,0.1073447]
[1745503337399,0.1073447,93128.0,93127.0,0.1048]
[1745503337586,0.1073481,93125.0,93124.0,0.3608]
[1745503337786,0.1073574,93117.0,93111.0,0.11273371]
[1745503337987,0.1073574,93117.0,93112.0,0.1059]
[1745503338193,0.2793574,93117.0,93112.0,0.1059]
[1745503338385,0.2793574,93117.0,93111.0,0.00536991]
[1745503338593,0.4824574,93117.0,93116.0,0.10843242]
[1745503339184,0.4824574,93117.0,93116.0,0.00107392]
[1745503340100,0.4824574,93117.0,93116.0,0.10843242]
[1745503340391,0.3751,93117.0,93116.0,0.10843242]
[1745503340596,0.00041461,93129.0,93128.0,0.1073447]
[1745503340784,0.202,93149.0,93148.0,0.1073216]
[1745503340986,0.07788,93154.0,93153.0,0.1073159]
[1745503341191,0.24988,93154.0,93150.0,0.0536595]
[1745503341387,0.4108897,93154.0,93142.0,0.3608]
[1745503341587,0.202,93153.0,93152.0,0.107317]
[1745503341796,0.1024,93153.0,93152.0,0.107317]
[1745503341995,0.1024,93153.0,93150.0,0.4144591]
[1745503341996,0.24988,93154.0,93153.0,0.1073159]
[1745503342190,0.07788,93154.0,93153.0,0.1073159]
[1745503342586,0.1023,93161.0,93160.0,0.1073078]
[1745503342793,0.0536426,93180.0,93160.0,0.3608]
[1745503342988,0.2097,93172.0,93171.0,0.1072951]
[1745503343194,0.107294,93172.0,93171.0,0.1072951]
[1745503343394,0.17361113,93173.0,93172.0,0.107294]
[1745503345192,0.69538563,93173.0,93167.0,0.1072994]
[1745503345393,0.28604,93172.0,93161.0,0.3608]
[1745503345594,0.1072951,93171.0,93170.0,0.1072958]
[1745503345905,0.1072974,93169.0,93168.0,0.0536492]
[1745503346198,0.2792974,93169.0,93168.0,0.0536492]
[1745503346401,0.172,93169.0,93168.0,0.0536492]
[1745503346794,0.2792974,93169.0,93168.0,0.0536492]
[1745503346996,0.1073032,93164.0,93163.0,0.4144519]
[1745503347299,0.107317,93153.0,93152.0,0.1609692]
[1745503347501,0.107317,93153.0,93152.0,0.1609584]
[1745503348011,0.0536568,93155.0,93154.0,0.1073147]
[1745503348601,0.107348,93155.0,93137.0,0.3608]
[1745503348902,0.053671,93131.0,93128.0,0.00161061]
[1745503349099,0.1073424,93130.0,93129.0,0.1073]
[1745503349495,0.1073435,93129.0,93128.0,0.10895451]
[1745503349999,0.5,93146.0,93145.0,0.1073251]
[1745503350201,0.172,93152.0,93151.0,0.1073182]
[1745503350406,0.1008,93169.0,93168.0,0.1072986]
[1745503350598,0.1008,93169.0,93168.0,0.4680986]
[1745503350999,0.1055,93175.0,93168.0,0.4680986]
[1745503351000,0.1055,93175.0,93168.0,0.4144487]
[1745503351202,0.172,93169.0,93168.0,0.5217473]
[1745503351407,0.172,93169.0,93168.0,0.1609473]
[1745503354398,0.172,93169.0,93165.0,0.1073014]
[1745503354608,0.3047,93168.0,93162.0,0.1624117]
[1745503354909,0.3047,93168.0,93167.0,0.1072997]
[1745503355209,0.4767,93168.0,93167.0,0.1072997]
[1745503355407,0.4767,93168.0,93164.0,0.3608]
[1745503355604,0.4767,93168.0,93167.0,0.1072997]
[1745503356011,0.3726,93168.0,93167.0,0.1072997]
[1745503356411,0.172,93168.0,93167.0,0.1072997]
[1745503357513,0.1085154,93168.0,93167.0,0.1072997]
[1745503358211,0.0818,93195.0,93167.0,0.357332]
[1745503358397,0.1028,93194.0,93193.0,0.1072698]
[1745503358598,0.0818,93195.0,93194.0,0.1072687]
[1745503358906,0.0818,93195.0,93193.0,0.3608]
[1745503359109,0.0972,93194.0,93193.0,0.3608]
[1745503359301,0.2538,93195.0,93193.0,0.3608]
[1745503359302,0.2538,93195.0,93194.0,0.1072687]
[1745503359702,0.361104,93195.0,93193.0,0.3608]
[1745503359904,0.302904,93194.0,93175.0,0.3608]
[1745503360103,0.1956,93194.0,93181.0,0.0536413]
[1745503360301,0.1956,93194.0,93175.0,0.3608]
[1745503360302,0.1956,93194.0,93186.0,0.0536386]
[1745503360501,0.0536349,93193.0,93185.0,0.1072781]
[1745503360702,0.1072733,93190.0,93175.0,0.3608]
[1745503360911,0.414444,93178.0,93156.0,0.3608]
[1745503361207,0.0993,93177.0,93176.0,0.1072894]
[1745503361408,0.1965,93177.0,93176.0,0.1072894]
[1745503361806,0.0993,93177.0,93176.0,0.1072894]
[1745503362112,0.2713,93177.0,93176.0,0.1072894]
[1745503362304,0.172,93177.0,93176.0,0.1072894]
[1745503362702,0.2792882,93177.0,93176.0,0.1072894]
[1745503364213,0.172,93177.0,93173.0,0.0536462]
[1745503364420,0.107294,93172.0,93171.0,0.4680924]
[1745503365019,0.107294,93172.0,93171.0,0.3608]
[1745503365219,0.279294,93172.0,93171.0,0.4680951]
[1745503365418,0.1072963,93170.0,93169.0,0.1609451]
[1745503365620,0.1073044,93163.0,93156.0,0.1073115]
[1745503365816,0.1891044,93163.0,93162.0,1e-08]
[1745503366116,0.1073147,93154.0,93153.0,0.21324745]
[1745503366608,0.2146627,93154.0,93153.0,0.21324745]
[1745503366812,0.1991,93154.0,93153.0,0.21324745]
[1745503367020,0.1073147,93154.0,93153.0,0.32056335]
[1745503367211,0.2793147,93154.0,93153.0,0.32056335]
[1745503367723,0.2793147,93154.0,93153.0,0.21324745]
[1745503367920,0.4834147,93154.0,93153.0,0.21324745]
[1745503368517,0.1609801,93151.0,93150.0,0.1073188]
[1745503368720,0.1073205,93149.0,93148.0,0.4144608]
[1745503369119,0.2793205,93149.0,93148.0,0.4144608]
[1745503369420,0.2256607,93149.0,93148.0,0.1073216]
[1745503369621,0.1073228,93147.0,93146.0,0.05473518]
[1745503370222,0.2793228,93147.0,93146.0,0.05473518]
[1745503370922,0.172,93147.0,93146.0,0.05473518]
[1745503371625,0.2793228,93147.0,93146.0,0.05473518]
[1745503371810,0.172,93147.0,93146.0,0.05473518]
[1745503372015,0.2793228,93147.0,93146.0,0.05473518]
[1745503373721,0.2793228,93147.0,93146.0,0.15623518]
[1745503374324,0.2793228,93147.0,93146.0,0.00107358]
[1745503374524,0.172,93147.0,93146.0,0.10839748]
[1745503375030,0.0818,93184.0,93146.0,0.35842958]
[1745503375217,0.1072874,93178.0,93177.0,0.4680882]
[1745503375523,0.1609319,93178.0,93177.0,0.4680882]
[1745503375827,0.1609319,93178.0,93176.0,0.2045]
[1745503375828,0.1072882,93177.0,93176.0,0.2045]
[1745503376326,0.4834882,93177.0,93176.0,0.2045]
[1745503376518,0.9834882,93177.0,93176.0,0.3117894]
[1745503376916,0.672,93177.0,93176.0,0.3117894]
[1745503378124,0.6421799,93177.0,93176.0,0.6691134]
[1745503378329,0.105,93200.0,93199.0,0.1072629]
[1745503378619,0.105,93200.0,93181.0,0.5364129]
[1745503378620,0.1072825,93182.0,93181.0,0.3608]
[1745503378816,0.1072782,93186.0,93181.0,0.4144413]
[1745503379016,0.1609213,93185.0,93184.0,0.1072802]
[1745503379413,0.1072825,93182.0,93181.0,0.4680832]
[1745503379614,0.1072825,93182.0,93181.0,0.4680836]
[1745503379820,0.1072825,93182.0,93181.0,0.3608]
[1745503380218,0.2792825,93182.0,93181.0,0.3608]
[1745503380523,0.1609403,93174.0,93173.0,0.1072922]
[1745503380715,0.0536463,93174.0,93173.0,0.1072922]
[1745503381113,0.172,93182.0,93181.0,0.1072836]
[1745503381320,0.1609004,93198.0,93197.0,0.0536321]
[1745503381522,0.1063,93199.0,93198.0,0.1072641]
[1745503381713,0.2135629,93199.0,93198.0,0.1072641]
[1745503381918,0.1072664,93197.0,93196.0,0.1072661]
[1745503382125,0.2792664,93197.0,93196.0,0.1072661]
[1745503382322,0.3855664,93197.0,93196.0,0.1072661]
[1745503382519,0.4666064,93197.0,93196.0,0.1072661]
[1745503382720,1.07744,93197.0,93172.0,0.3608]
[1745503382919,0.160949,93170.0,93169.0,0.0536481]
[1745503383123,0.586449,93170.0,93155.0,0.3608]
[1745503383321,0.1609644,93161.0,93160.0,0.053652]
[1745503383529,0.1073124,93156.0,93155.0,0.5217664]
[1745503383729,0.1883374,93169.0,93168.0,0.1072986]
[1745503383923,0.1072974,93169.0,93168.0,0.4680986]
[1745503384124,0.2792974,93169.0,93168.0,0.48351203]
[1745503384924,0.105,93200.0,93168.0,0.73354543]
[1745503385125,0.105,93200.0,93187.0,0.3608]
[1745503385321,0.1072756,93188.0,93187.0,0.4680767]
[1745503385535,0.1072756,93188.0,93187.0,0.3608]
[1745503386121,0.3772756,93188.0,93187.0,0.4680767]
[1745503386429,0.2792756,93188.0,93187.0,0.4680767]
[1745503386926,0.172,93188.0,93187.0,0.4680767]
[1745503387318,0.172,93188.0,93187.0,0.48430054]
[1745503387627,0.105,93200.0,93198.0,0.1072641]
[1745503387827,0.2122627,93200.0,93198.0,0.1072641]
[1745503388029,0.105,93200.0,93198.0,0.1072641]
[1745503388227,0.265,93199.0,93198.0,0.12403102]
[1745503388431,0.172,93199.0,93198.0,0.12403102]
[1745503388824,0.2792629,93199.0,93198.0,0.12403102]
[1745503389021,0.172,93199.0,93198.0,0.12403102]
[1745503389222,0.172,93199.0,93198.0,0.12738431]
[1745503390227,0.0011,93207.0,93202.0,0.0536294]
[1745503390428,0.0011,93207.0,93206.0,0.3608]
[1745503390737,0.0011,93207.0,93206.0,0.37756692]
[1745503391027,0.30934171,93207.0,93206.0,0.02012021]
[1745503391223,1.17964171,93207.0,93206.0,0.02012021]
[1745503391631,1.0723537,93207.0,93206.0,0.02012021]
[1745503391928,0.8649,93207.0,93206.0,0.48817501]
[1745503392133,0.6731,93207.0,93206.0,0.48817501]
[1745503392330,0.88764171,93207.0,93206.0,0.02012021]
[1745503392627,0.0536292,93203.0,93185.0,0.0536393]
[1745503392829,0.0536332,93198.0,93195.0,0.0536336]
[1745503393024,0.0925,93206.0,93183.0,0.3608]
[1745503393221,0.172,93203.0,93202.0,0.1072594]
[1745503394127,0.0011,93207.0,93206.0,0.1072548]
[1745503394329,0.3608,93240.0,93216.0,0.0536215]
[1745503394538,0.3608,93240.0,93223.0,0.4680353]
[1745503395127,0.3608,93240.0,93236.0,0.1072203]
[1745503395923,0.0926,93245.0,93235.0,0.0938]
[1745503396125,0.1731,93237.0,93235.0,0.1907]
[1745503396432,0.1731,93237.0,93236.0,0.1072203]
[1745503396935,0.1731,93237.0,93236.0,0.1907]
[1745503397232,0.1731,93237.0,93236.0,0.4680203]
[1745503399320,0.1731,93237.0,93236.0,0.3608]
[1745503399526,0.623956,93237.0,93207.0,0.3608]
[1745503399730,0.3608,93230.0,93224.0,0.1072339]
[1745503399928,0.1731,93237.0,93226.0,0.0536158]
[1745503400128,0.0011,93237.0,93236.0,0.1072203]
[1745503400731,0.0011,93237.0,93236.0,0.3022203]
[1745503401131,0.1731,93237.0,93236.0,0.3022203]
[1745503401529,0.1731,93237.0,93236.0,0.31297709]
[1745503401728,0.1731,93237.0,93236.0,0.3022203]
[1745503402238,0.1731,93237.0,93236.0,0.31400009]
[1745503402435,0.1995,93254.0,93253.0,0.1072008]
[1745503402639,0.1995,93254.0,93253.0,0.11898108]
[1745503402833,0.1995,93254.0,93253.0,0.1072008]
[1745503403043,0.1995,93254.0,93253.0,0.2945008]
[1745503403238,0.08944708,93254.0,93253.0,0.3065269]
[1745503404639,0.08944708,93254.0,93249.0,0.4144023]
[1745503404640,0.44668308,93254.0,93230.0,0.4144136]
[1745503404838,0.30019362,93240.0,93231.0,0.0933]
[1745503405038,0.1072217,93235.0,93231.0,0.00335107]
[1745503405235,0.1929,93234.0,93231.0,0.00335107]
[1745503405433,0.1929,93234.0,93232.0,0.00335107]
[1745503405635,0.1929,93234.0,93221.0,0.3608]
[1745503405842,0.0536228,93214.0,93177.0,0.27384257]
[1745503406035,0.3608,93183.0,93178.0,0.0933]
[1745503406338,0.1072848,93180.0,93179.0,0.0966539]
[1745503406539,0.5754048,93180.0,93179.0,0.0033539]
[1745503406738,0.8254048,93180.0,93179.0,0.0033539]
[1745503407133,0.89012,93180.0,93179.0,0.1106398]
[1745503407333,0.5328,93180.0,93179.0,0.1106398]
[1745503407533,1.0328,93180.0,93179.0,0.1106398]
[1745503407744,1.1400848,93180.0,93179.0,0.1106398]
[1745503408342,1.1400848,93180.0,93179.0,0.0033539]
[1745503408641,0.1072882,93177.0,93176.0,0.00107323]
[1745503408830,0.2146122,93177.0,93176.0,0.00107323]
[1745503409036,0.4646122,93177.0,93176.0,0.00107323]
[1745503409232,0.6366122,93177.0,93176.0,0.00107323]
[1745503409433,0.4281882,93177.0,93176.0,0.00107323]
[1745503409640,0.172,93177.0,93176.0,0.10836263]
[1745503410645,0.172,93177.0,93176.0,0.29916263]
[1745503410842,0.2792882,93177.0,93176.0,0.09857323]
[1745503411040,0.172,93177.0,93176.0,0.00107323]
[1745503411240,0.172,93177.0,93176.0,0.10836263]
[1745503412039,0.2792882,93177.0,93176.0,0.09857323]
[1745503412740,0.2792882,93177.0,93176.0,0.00107323]
[1745503413141,0.8866122,93177.0,93176.0,0.00107323]
[1745503413338,0.1073078,93160.0,93159.0,0.00536714]
[1745503413547,0.1073078,93160.0,93159.0,0.11267614]
[1745503414140,0.2793078,93160.0,93159.0,0.11267614]
[1745503414443,0.2793078,93160.0,93129.0,0.3608]
[1745503414444,0.1073228,93147.0,93129.0,0.3608]
[1745503414754,0.1073228,93147.0,93146.0,0.10839748]
[1745503414755,0.4681228,93147.0,93146.0,0.10839748]
[1745503415350,0.5328,93147.0,93146.0,0.10839748]
[1745503415552,0.6401228,93147.0,93146.0,0.10839748]
[1745503416446,0.6769228,93147.0,93146.0,0.00107358]
[1745503416641,0.7682228,93147.0,93146.0,0.00107358]
[1745503417050,0.7682228,93147.0,93146.0,0.10839748]
[1745503417245,0.6241,93147.0,93146.0,0.10839748]
[1745503417441,0.5328,93147.0,93146.0,0.10839748]
[1745503417638,0.172,93147.0,93146.0,0.10839748]
[1745503418737,0.1160224,93147.0,93146.0,0.10839748]
[1745503418938,0.10690004,93147.0,93146.0,0.82655348]
[1745503419248,0.0922,93173.0,93161.0,0.1073067]
[1745503419553,0.129,93173.0,93161.0,0.1073067]
[1745503419942,0.4681063,93162.0,93161.0,0.1073067]
[1745503420149,0.1073067,93161.0,93160.0,0.0941]
[1745503420344,0.1995067,93161.0,93160.0,0.0941]
[1745503420647,0.1995067,93161.0,93160.0,0.2014078]
[1745503421149,0.2642,93161.0,93160.0,0.5622078]
[1745503421348,0.3959403,93161.0,93160.0,0.66954779]
[1745503421648,0.3608,93193.0,93160.0,0.81223999]
[1745503421851,0.1249,93202.0,93201.0,0.1072606]
[1745503422355,0.0011,93207.0,93206.0,0.1072548]
[1745503422747,0.0536282,93205.0,93200.0,0.0943]
[1745503423060,0.0536294,93203.0,93180.0,0.30019362]
[1745503423250,0.1072687,93194.0,93193.0,0.2015698]
[1745503423556,0.3608,93223.0,93204.0,0.1072571]
[1745503423744,0.0536262,93209.0,93204.0,0.1072571]
[1745503424145,0.279256,93205.0,93204.0,0.1072571]
[1745503424345,0.1072571,93204.0,93203.0,0.0943]
[1745503424656,0.160912,93192.0,93191.0,0.1072717]
[1745503424844,0.0536364,93192.0,93191.0,0.2839717]
[1745503425039,0.2256364,93192.0,93191.0,0.2839717]
[1745503425244,0.172,93192.0,93191.0,0.2839717]
[1745503426452,0.279271,93192.0,93191.0,0.1767]
[1745503426751,0.1609359,93177.0,93176.0,0.1072833]
[1745503426953,0.0536442,93177.0,93176.0,0.1072833]
[1745503427146,0.2256442,93177.0,93176.0,0.1072833]
[1745503427750,0.172,93177.0,93176.0,0.1072833]
[1745503428460,0.2792882,93177.0,93176.0,0.1072833]
[1745503428755,0.172,93177.0,93176.0,0.1980833]
[1745503429253,0.172,93177.0,93176.0,0.6662073]
[1745503429553,0.46752,93213.0,93176.0,0.808924]
[1745503429861,0.0536245,93212.0,93206.0,0.1072548]
[1745503430248,0.2803537,93207.0,93206.0,0.1072548]
[1745503430448,0.2803537,93207.0,93206.0,0.2852548]
[1745503430855,0.2803537,93207.0,93206.0,0.178]
[1745503431256,0.2803537,93207.0,93189.0,0.3608]
[1745503431257,0.0536348,93195.0,93194.0,0.1608954]
[1745503431751,0.0536348,93195.0,93191.0,0.0536356]
[1745503431752,0.1072583,93203.0,93202.0,0.1608887]
[1745503432057,0.1731,93207.0,93206.0,0.1072548]
[1745503432248,0.1083537,93207.0,93206.0,0.1072548]
[1745503432449,0.0011,93207.0,93206.0,0.1072548]
[1745503432759,0.1083537,93207.0,93206.0,0.18]
[1745503433151,0.2803537,93207.0,93206.0,0.18]
[1745503433754,0.2803537,93207.0,93206.0,0.2872548]
[1745503433955,0.2803537,93207.0,93206.0,0.18]
[1745503434258,0.4653537,93207.0,93206.0,0.18]
[1745503434456,0.6731,93207.0,93206.0,0.2872548]
[1745503434643,0.6731,93207.0,93206.0,0.3945428]
[1745503434954,0.6731,93207.0,93206.0,0.7553428]
[1745503435155,0.5011,93207.0,93206.0,0.7553428]
[1745503435554,0.5011,93207.0,93206.0,0.6480548]
[1745503435758,0.0011,93207.0,93206.0,0.6480548]
[1745503435953,0.1083537,93207.0,93206.0,0.6480548]
[1745503436155,0.2803537,93207.0,93206.0,0.5408]
[1745503436362,0.2803537,93207.0,93206.0,0.6480548]
[1745503436552,0.1731,93207.0,93206.0,0.6480548]
[1745503436860,0.2803537,93207.0,93206.0,0.6480548]
[1745503437761,0.6411537,93207.0,93206.0,0.2872548]
[1745503439761,0.6411537,93207.0,93206.0,0.18]
[1745503439956,0.6411537,93207.0,93206.0,0.2872548]
[1745503440766,0.01401718,93207.0,93206.0,0.3945428]
[1745503440949,0.5398,93241.0,93236.0,0.1072203]
[1745503441153,0.1731,93237.0,93236.0,0.1072203]
[1745503441351,0.1731,93237.0,93236.0,0.21447629]
[1745503441861,0.1731,93237.0,93236.0,0.39787629]
[1745503443054,0.2803192,93237.0,93236.0,0.2906203]
[1745503443263,0.1731,93237.0,93236.0,0.2906203]
[1745503444755,0.2803192,93237.0,93236.0,0.2906203]
[1745503445061,0.1731,93237.0,93236.0,0.2906203]
[1745503445573,0.2803192,93237.0,93236.0,0.1834]
[1745503445860,0.1072295,93228.0,93227.0,0.1072302]
[1745503446247,0.1072295,93228.0,93220.0,0.35381282]
[1745503446248,0.1072491,93211.0,93200.0,0.30019362]
[1745503446452,0.3608,93214.0,93209.0,0.0536251]
[1745503446653,0.3608,93214.0,93213.0,0.1072468]
[1745503446853,0.672,93228.0,93211.0,0.0536242]
[1745503447064,0.672,93228.0,93227.0,0.1072307]
[1745503447954,0.172,93228.0,93227.0,0.2782307]
[1745503448554,0.172,93228.0,93227.0,0.6390307]
[1745503449059,0.3608,93253.0,93236.0,0.1072203]
[1745503449357,0.3608,93253.0,93236.0,0.4680203]